fUSD/lending_fUSD_20250216
["ID","MTS","AMOUNT","RATE_DAILY","PERIOD"]
[353221398,1739671833120,-312.05841565,0.00010958,2]
[353221399,1739671833130,-500.0,0.00010958,2]
[353221400,1739671833139,-500.0,0.00010958,2]
[353221401,1739671833148,-502.82644226,0.00010958,2]
[353221402,1739671833158,-500.0,0.00010958,2]
[353221403,1739671833167,-500.0,0.00010958,2]
[353221404,1739671833177,-500.0,0.00010958,2]
[353221405,1739671833187,-1167.917,0.00010958,2]
[353221406,1739671833197,-500.0,0.00010958,2]
[353221407,1739671833206,-500.0,0.00010958,2]
[353221408,1739671833216,-500.0,0.00010958,2]
[353221409,1739671833225,-504.60250181,0.00010958,2]
[353221410,1739671833235,-500.0,0.00010958,2]
[353221411,1739671833245,-500.0,0.00010958,2]
[353221412,1739671833255,-500.0,0.00010958,2]
[353221413,1739671833265,-564.1124646,0.00010958,2]
[353221414,1739671833277,-500.0,0.00010958,2]
[353221415,1739671833287,-500.0,0.00010958,2]
[353221416,1739671833297,-500.0,0.00010958,2]
[353221417,1739671833306,-500.0,0.00010958,2]
[353221418,1739671833316,-500.0,0.00010958,2]
[353221419,1739671833326,-500.0,0.00010958,2]
[353221420,1739671833335,-500.0,0.00010958,2]
[353221421,1739671833346,-500.0,0.00010958,2]
[353221422,1739671833356,-500.0,0.00010958,2]
[353221423,1739671833366,-500.0,0.00010958,2]
[353221424,1739671833375,-500.0,0.00010958,2]
[353221425,1739671833384,-500.0,0.00010958,2]
[353221426,1739671833394,-500.0,0.00010958,2]
[353221427,1739671833404,-500.0,0.00010958,2]
[353221428,1739671833414,-500.0,0.00010958,2]
[353221429,1739671833423,-500.0,0.00010958,2]
[353221430,1739671833432,-500.0,0.00010958,2]
[353221431,1739671833441,-500.0,0.00010958,2]
[353221432,1739671833451,-503.54222397,0.00010958,2]
[353221433,1739671833460,-500.0,0.00010958,2]
[353221434,1739671833469,-503.66502418,0.00010958,2]
[353221435,1739671833479,-1068.156143,0.00010958,2]
[353221436,1739671833488,-500.0,0.00010958,2]
[353221437,1739671833498,-757.27,0.00010958,2]
[353221438,1739671833507,-501.35183498,0.00010958,2]
[353221439,1739671833517,-581.66,0.00010958,2]
[353221440,1739671833698,-537.32,0.00010958,2]
[353221441,1739671833715,-500.0,0.00010958,2]
[353221442,1739671833725,-500.0,0.00010958,2]
[353221443,1739671833735,-502.56091814,0.00010958,2]
[353221444,1739671833744,-500.0,0.00010958,2]
[353221445,1739671833754,-706.78,0.00010958,2]
[353221446,1739671833764,-326.11508889,0.00010958,2]
[353221447,1739671833773,-500.0,0.00010958,2]
[353221448,1739671833783,-500.0,0.00010958,2]
[353221449,1739671833792,-500.0,0.00010958,2]
[353221450,1739671833801,-500.0,0.00010958,2]
[353221451,1739671833810,-500.0,0.00010958,2]
[353221452,1739671833819,-500.0,0.00010958,2]
[353221453,1739671833829,-500.0,0.00010958,2]
[353221454,1739671833839,-500.0,0.00010958,2]
[353221455,1739671833848,-173.91464269,0.00010958,2]
[353221456,1739671833857,-500.0,0.00010958,2]
[353221457,1739671833867,-509.87,0.00010958,2]
[353221458,1739671833876,-508.71521178,0.00010958,2]
[353221459,1739671833886,-500.0,0.00010958,2]
[353221460,1739671833895,-505.50448459,0.00010958,2]
[353221461,1739671833904,-774.494601,0.00010958,2]
[353221462,1739671833913,-500.0,0.00010958,2]
[353221463,1739671833923,-775.17,0.00010958,2]
[353221464,1739671833933,-503.11363541,0.00010958,2]
[353221465,1739671833942,-258.72458546,0.00010958,2]
[353221466,1739671833951,-500.0,0.00010958,2]
[353221467,1739671833961,-500.0,0.00010958,2]
[353221468,1739671833971,-506.89005442,0.00010958,2]
[353221469,1739671833980,-500.0,0.00010958,2]
[353221470,1739671833989,-503.33818959,0.00010958,2]
[353221471,1739671833999,-516.14,0.00010958,2]
[353221472,1739671834008,-500.0,0.00010958,2]
[353221473,1739671834017,-500.0,0.00010958,2]
[353221474,1739671834027,-726.25,0.00010958,2]
[353221475,1739671834036,-500.0,0.00010958,2]
[353221476,1739671834045,-214.9053616,0.00010958,2]
[353221477,1739671834055,-229.29833063,0.00010958,2]
[353221478,1739671834064,-500.0,0.00010958,2]
[353221479,1739671834073,-583.4,0.00010958,2]
[353221480,1739671834082,-500.0,0.00010958,2]
[353221481,1739671834092,-500.0,0.00010958,2]
[353221482,1739671834102,-649.61427045,0.00010958,2]
[353221483,1739671834111,-930.35,0.00010958,2]
[353221484,1739671834120,-236.62088742,0.00010958,2]
[353221486,1739671837830,-67.37378494,0.00010958,2]
[353221487,1739671837841,-416.66675924,0.00010958,2]
[353221488,1739671837897,-83.33324076,0.00010958,2]
[353221489,1739671837906,-833.47,0.00010958,2]
[353221490,1739671837916,-507.63118899,0.00010958,2]
[353221491,1739671837925,-500.0,0.00010958,2]
[353221492,1739671837934,-175.64751558,0.00010958,2]
[353221552,1739671843031,-1110.0,0.00010589,2]
[353221553,1739671843041,-469.01248442,0.00010958,2]
[353221554,1739671843051,-462.37923576,0.00010958,2]
[353221555,1739671843099,-41.54249816,0.00010958,2]
[353221556,1739671843108,-531.47,0.00010958,2]
[353221557,1739671843118,-511.65116264,0.00010958,2]
[353221558,1739671843128,-507.22503686,0.00010958,2]
[353221559,1739671843138,-503.8157214,0.00010958,2]
[353221560,1739671843147,-25.98860483,0.00010958,2]
[353221561,1739671843170,-472.24752299,0.00010958,2]
[353221562,1739671843180,-503.66612015,0.00010958,2]
[353221563,1739671843189,-545.87,0.00010958,2]
[353221564,1739671843198,-500.0,0.00010958,2]
[353221565,1739671843208,-501.98143225,0.00010958,2]
[353221566,1739671843217,-505.91944934,0.00010958,2]
[353221567,1739671843227,-500.58466624,0.00010958,2]
[353221568,1739671843237,-500.0,0.00010958,2]
[353221569,1739671843247,-500.0,0.00010958,2]
[353221570,1739671843257,-500.0,0.00010958,2]
[353221571,1739671843267,-502.96150264,0.00010958,2]
[353221572,1739671843280,-500.0,0.00010958,2]
[353221573,1739671843291,-502.51180002,0.00010958,2]
[353221574,1739671843300,-506.02765054,0.00010958,2]
[353221575,1739671843311,-505.67308547,0.00010958,2]
[353221576,1739671843321,-500.0,0.00010958,2]
[353221577,1739671843331,-500.0,0.00010958,2]
[353221578,1739671843340,-500.0,0.00010958,2]
[353221579,1739671843351,-500.0,0.00010958,2]
[353221580,1739671843361,-500.0,0.00010958,2]
[353221582,1739671843371,-500.0,0.00010958,2]
[353221584,1739671843380,-500.0,0.00010958,2]
[353221586,1739671843390,-501.01115879,0.00010958,2]
[353221588,1739671843400,-500.0,0.00010958,2]
[353221589,1739671843409,-500.0,0.00010958,2]
[353221590,1739671843418,-502.1047073,0.00010958,2]
[353221591,1739671843427,-504.01968852,0.00010958,2]
[353221592,1739671843437,-504.01305836,0.00010958,2]
[353221593,1739671843447,-500.0,0.00010958,2]
[353221594,1739671843456,-500.0,0.00010958,2]
[353221595,1739671843465,-504.59503106,0.00010958,2]
[353221596,1739671843475,-500.0,0.00010958,2]
[353221597,1739671843484,-504.85982228,0.00010958,2]
[353221598,1739671843494,-505.0775694,0.00010958,2]
[353221599,1739671843504,-501.74765448,0.00010958,2]
[353221600,1739671843514,-500.0,0.00010958,2]
[353221601,1739671843524,-500.0,0.00010958,2]
[353221602,1739671843533,-502.24448728,0.00010958,2]
[353221603,1739671843543,-501.96096112,0.00010958,2]
[353221604,1739671843552,-502.57062972,0.00010958,2]
[353221605,1739671843561,-502.55198648,0.00010958,2]
[353221606,1739671843571,-500.0,0.00010958,2]
[353221607,1739671843580,-583.72693066,0.00010958,2]
[353221608,1739671843589,-503.64680847,0.00010958,2]
[353221609,1739671843600,-500.0,0.00010958,2]
[353221610,1739671843609,-624.59,0.00010958,2]
[353221611,1739671843619,-507.2144228,0.00010958,2]
[353221612,1739671843628,-502.13771737,0.00010958,2]
[353221613,1739671843637,-500.0,0.00010958,2]
[353221614,1739671843646,-529.10678491,0.00010958,2]
[353221615,1739671843656,-501.62785081,0.00010958,2]
[353221616,1739671843665,-502.74772256,0.00010958,2]
[353221617,1739671843675,-500.0,0.00010958,2]
[353221618,1739671843685,-500.0,0.00010958,2]
[353221619,1739671843694,-279.59813983,0.00010958,2]
[353221620,1739671843708,-222.62524569,0.00010958,2]
[353221622,1739671843718,-524.22,0.00010958,2]
[353221623,1739671843728,-5012.18997555,0.00010958,2]
[353221624,1739671843738,-500.0,0.00010958,2]
[353221625,1739671843748,-500.0,0.00010958,2]
[353221626,1739671843757,-500.0,0.00010958,2]
[353221627,1739671843767,-500.0,0.00010958,2]
[353221628,1739671843776,-500.0,0.00010958,2]
[353221630,1739671843786,-603.96,0.00010958,2]
[353221631,1739671843795,-500.0,0.00010958,2]
[353221633,1739671843804,-500.0,0.00010958,2]
[353221635,1739671843814,-508.81,0.00010958,2]
[353221636,1739671843823,-496.02054616,0.00010958,2]
[353221637,1739671843832,-500.0,0.00010958,2]
[353221638,1739671843842,-500.0,0.00010958,2]
[353221639,1739671843851,-500.0,0.00010958,2]
[353221640,1739671843861,-500.0,0.00010958,2]
[353221641,1739671843870,-500.0,0.00010958,2]
[353221642,1739671843880,-881.21,0.00010958,2]
[353221643,1739671843889,-500.0,0.00010958,2]
[353221644,1739671843899,-500.0,0.00010958,2]
[353221645,1739671843909,-1732.11,0.00010958,2]
[353221646,1739671843919,-500.0,0.00010958,2]
[353221647,1739671843929,-510.96,0.00010958,2]
[353221648,1739671843938,-500.0,0.00010958,2]
[353221649,1739671843948,-500.0,0.00010958,2]
[353221650,1739671843958,-500.0,0.00010958,2]
[353221651,1739671843967,-500.0,0.00010958,2]
[353221652,1739671843977,-500.0,0.00010958,2]
[353221653,1739671843987,-626.02,0.00010958,2]
[353221654,1739671843997,-1020.43,0.00010958,2]
[353221655,1739671844008,-500.0,0.00010958,2]
[353221656,1739671844018,-500.0,0.00010958,2]
[353221657,1739671844029,-500.0,0.00010958,2]
[353221658,1739671844039,-500.0,0.00010958,2]
[353221659,1739671844049,-500.0,0.00010958,2]
[353221660,1739671844059,-500.0,0.00010958,2]
[353221661,1739671844068,-646.07,0.00010958,2]
[353221662,1739671844078,-539.4,0.00010958,2]
[353221663,1739671844087,-500.0,0.00010958,2]
[353221664,1739671844098,-500.0,0.00010958,2]
[353221665,1739671844108,-500.0,0.00010958,2]
[353221666,1739671844117,-500.0,0.00010958,2]
[353221667,1739671844127,-500.0,0.00010958,2]
[353221668,1739671844136,-500.0,0.00010958,2]
[353221669,1739671844146,-500.0,0.00010958,2]
[353221670,1739671844156,-544.77,0.00010958,2]
[353221671,1739671844166,-507.46625056,0.00010958,2]
[353221672,1739671844176,-395.39578565,0.00010958,2]
[353221673,1739671844185,-500.0,0.00010958,2]
[353221674,1739671844195,-500.0,0.00010958,2]
[353221675,1739671844204,-500.0,0.00010958,2]
[353221676,1739671844213,-893.55,0.00010958,2]
[353221677,1739671844223,-500.0,0.00010958,2]
[353221678,1739671844232,-500.0,0.00010958,2]
[353221679,1739671844242,-500.0,0.00010958,2]
[353221680,1739671844252,-500.0,0.00010958,2]
[353221681,1739671844262,-500.0,0.00010958,2]
[353221682,1739671844275,-677.09,0.00010958,2]
[353221683,1739671844285,-500.0,0.00010958,2]
[353221684,1739671844295,-500.0,0.00010958,2]
[353221685,1739671844304,-500.0,0.00010958,2]
[353221686,1739671844315,-500.0,0.00010958,2]
[353221687,1739671844325,-505.12657271,0.00010958,2]
[353221688,1739671844335,-511.87328274,0.00010958,2]
[353221689,1739671844346,-500.0,0.00010958,2]
[353221690,1739671844355,-518.67,0.00010958,2]
[353221691,1739671844363,-500.0,0.00010958,2]
[353221692,1739671844373,-500.0,0.00010958,2]
[353221693,1739671844382,-500.0,0.00010958,2]
[353221694,1739671844392,-542.59,0.00010958,2]
[353221695,1739671844401,-500.0,0.00010958,2]
[353221696,1739671844411,-500.0,0.00010958,2]
[353221697,1739671844421,-500.0,0.00010958,2]
[353221698,1739671844431,-599.28,0.00010958,2]
[353221699,1739671844441,-500.0,0.00010958,2]
[353221700,1739671844451,-1126.54,0.00010958,2]
[353221701,1739671844461,-500.0,0.00010958,2]
[353221702,1739671844470,-500.0,0.00010958,2]
[353221703,1739671844480,-500.0,0.00010958,2]
[353221704,1739671844490,-500.0,0.00010958,2]
[353221705,1739671844499,-500.0,0.00010958,2]
[353221706,1739671844509,-500.0,0.00010958,2]
[353221707,1739671844519,-500.0,0.00010958,2]
[353221708,1739671844528,-500.0,0.00010958,2]
[353221709,1739671844537,-500.0,0.00010958,2]
[353221710,1739671844547,-500.0,0.00010958,2]
[353221711,1739671844556,-500.0,0.00010958,2]
[353221712,1739671844565,-500.0,0.00010958,2]
[353221713,1739671844574,-500.0,0.00010958,2]
[353221714,1739671844583,-500.0,0.00010958,2]
[353221715,1739671844747,-500.0,0.00010958,2]
[353221716,1739671844757,-661.18,0.00010958,2]
[353221717,1739671844766,-500.0,0.00010958,2]
[353221718,1739671844775,-500.0,0.00010958,2]
[353221719,1739671844784,-500.0,0.00010958,2]
[353221720,1739671844794,-500.0,0.00010958,2]
[353221721,1739671844804,-500.0,0.00010958,2]
[353221722,1739671844813,-500.0,0.00010958,2]
[353221723,1739671844823,-500.0,0.00010958,2]
[353221724,1739671844832,-379.63825929,0.00010958,2]
[353221725,1739671844842,-648.16,0.00010958,2]
[353221726,1739671844851,-500.0,0.00010958,2]
[353221727,1739671844860,-504.34474127,0.00010958,2]
[353221728,1739671844869,-500.0,0.00010958,2]
[353221729,1739671844879,-504.77027208,0.00010958,2]
[353221730,1739671844888,-500.0,0.00010958,2]
[353221731,1739671844898,-500.0,0.00010958,2]
[353221732,1739671844907,-500.0,0.00010958,2]
[353221733,1739671844917,-500.0,0.00010958,2]
[353221734,1739671844926,-500.0,0.00010958,2]
[353221735,1739671844935,-500.0,0.00010958,2]
[353221736,1739671844945,-597.02,0.00010958,2]
[353221737,1739671844955,-500.0,0.00010958,2]
[353221738,1739671844964,-500.0,0.00010958,2]
[353221739,1739671844974,-500.0,0.00010958,2]
[353221740,1739671844984,-500.0,0.00010958,2]
[353221741,1739671844995,-500.0,0.00010958,2]
[353221742,1739671845005,-500.0,0.00010958,2]
[353221743,1739671845015,-500.0,0.00010958,2]
[353221744,1739671845025,-500.0,0.00010958,2]
[353221745,1739671845035,-500.0,0.00010958,2]
[353221746,1739671845045,-500.0,0.00010958,2]
[353221747,1739671845056,-500.0,0.00010958,2]
[353221748,1739671845065,-549.78,0.00010958,2]
[353221749,1739671845076,-627.38,0.00010958,2]
[353221750,1739671845086,-626.0831936,0.00010958,2]
[353221751,1739671845096,-754.92,0.00010958,2]
[353221752,1739671845106,-500.0,0.00010958,2]
[353221753,1739671845115,-500.0,0.00010958,2]
[353221754,1739671845124,-509.22,0.00010958,2]
[353221755,1739671845134,-503.48,0.00010958,2]
[353221756,1739671845144,-497.54411396,0.00010958,2]
[353221757,1739671845154,-500.0,0.00010958,2]
[353221758,1739671845163,-506.00262895,0.00010958,2]
[353221759,1739671845173,-703.38,0.00010958,2]
[353221760,1739671845182,-500.0,0.00010958,2]
[353221761,1739671845191,-643.38,0.00010958,2]
[353221762,1739671845201,-500.0,0.00010958,2]
[353221763,1739671845211,-500.0,0.00010958,2]
[353221764,1739671845220,-500.0,0.00010958,2]
[353221765,1739671845230,-191.53722471,0.00010958,2]
[353221766,1739671845240,-500.0,0.00010958,2]
[353221767,1739671845249,-500.0,0.00010958,2]
[353221768,1739671845258,-500.0,0.00010958,2]
[353221769,1739671845269,-507.04322787,0.00010958,2]
[353221770,1739671845280,-500.0,0.00010958,2]
[353221771,1739671845289,-845.68,0.00010958,2]
[353221772,1739671845298,-500.0,0.00010958,2]
[353221773,1739671845308,-505.61322169,0.00010958,2]
[353221774,1739671845318,-500.0,0.00010958,2]
[353221775,1739671845327,-543.42402105,0.00010958,2]
[353221776,1739671845337,-500.0,0.00010958,2]
[353221777,1739671845347,-500.0,0.00010958,2]
[353221778,1739671845356,-615.74,0.00010958,2]
[353221779,1739671845366,-685.58,0.00010958,2]
[353221780,1739671845375,-500.0,0.00010958,2]
[353221781,1739671845384,-510.4,0.00010958,2]
[353221782,1739671845394,-690.43,0.00010958,2]
[353221783,1739671845403,-500.0,0.00010958,2]
[353221784,1739671845412,-150.0,0.00010958,2]
[353221785,1739671845422,-500.0,0.00010958,2]
[353221786,1739671845431,-500.0,0.00010958,2]
[353221787,1739671845441,-500.0,0.00010958,2]
[353221788,1739671845451,-500.0,0.00010958,2]
[353221789,1739671845461,-500.0,0.00010958,2]
[353221790,1739671845470,-599.09,0.00010958,2]
[353221791,1739671845480,-500.0,0.00010958,2]
[353221792,1739671845489,-1447.5,0.00010958,2]
[353221793,1739671845498,-500.0,0.00010958,2]
[353221794,1739671845507,-1043.24,0.00010958,2]
[353221795,1739671845517,-500.0,0.00010958,2]
[353221796,1739671845526,-500.0,0.00010958,2]
[353221797,1739671845535,-500.0,0.00010958,2]
[353221798,1739671845544,-628.53,0.00010958,2]
[353221799,1739671845554,-505.70156209,0.00010958,2]
[353221800,1739671845563,-540.43,0.00010958,2]
[353221801,1739671845573,-500.0,0.00010958,2]
[353221802,1739671845583,-500.0,0.00010958,2]
[353221803,1739671845592,-500.0,0.00010958,2]
[353221804,1739671845602,-542.08,0.00010958,2]
[353221805,1739671845611,-658.87,0.00010958,2]
[353221806,1739671845620,-500.0,0.00010958,2]
[353221807,1739671845629,-1541.19,0.00010958,2]
[353221808,1739671845638,-1138.34,0.00010958,2]
[353221809,1739671845647,-500.0,0.00010958,2]
[353221811,1739671845657,-1560.57,0.00010958,2]
[353221812,1739671845667,-500.0,0.00010958,2]
[353221813,1739671845676,-977.98,0.00010958,2]
[353221814,1739671845685,-500.0,0.00010958,2]
[353221815,1739671845694,-500.0,0.00010958,2]
[353221816,1739671845704,-500.0,0.00010958,2]
[353221817,1739671845713,-500.0,0.00010958,2]
[353221818,1739671845722,-1270.31,0.00010958,2]
[353221819,1739671845732,-500.0,0.00010958,2]
[353221820,1739671845741,-500.0,0.00010958,2]
[353221821,1739671845750,-604.18,0.00010958,2]
[353221822,1739671845760,-627.0,0.00010958,2]
[353221823,1739671845769,-500.0,0.00010958,2]
[353221824,1739671845778,-559.57,0.00010958,2]
[353221825,1739671845788,-1037.5,0.00010958,2]
[353221826,1739671845797,-500.0,0.00010958,2]
[353221827,1739671845806,-500.0,0.00010958,2]
[353221828,1739671845815,-500.0,0.00010958,2]
[353221829,1739671845824,-500.0,0.00010958,2]
[353221830,1739671845833,-741.46,0.00010958,2]
[353221831,1739671845842,-1842.42,0.00010958,2]
[353221832,1739671845852,-2319.0,0.00010958,2]
[353221833,1739671845862,-596.9,0.00010958,2]
[353221834,1739671845871,-500.0,0.00010958,2]
[353221835,1739671845880,-500.0,0.00010958,2]
[353221836,1739671845891,-875.98,0.00010958,2]
[353221837,1739671845900,-500.0,0.00010958,2]
[353221838,1739671845909,-500.0,0.00010958,2]
[353221839,1739671845917,-500.0,0.00010958,2]
[353221840,1739671845927,-1042.39,0.00010958,2]
[353221841,1739671845935,-678.16,0.00010958,2]
[353221842,1739671845944,-751.33,0.00010958,2]
[353221843,1739671845953,-500.0,0.00010958,2]
[353221844,1739671845963,-932.65,0.00010958,2]
[353221845,1739671845971,-500.0,0.00010958,2]
[353221846,1739671845980,-960.38,0.00010958,2]
[353221847,1739671845989,-500.0,0.00010958,2]
[353221848,1739671845998,-500.0,0.00010958,2]
[353221849,1739671846007,-856.53,0.00010958,2]
[353221850,1739671846016,-1298.02,0.00010958,2]
[353221851,1739671846025,-234.30349249,0.00010958,2]
[353221852,1739671846034,-500.0,0.00010958,2]
[353221853,1739671846043,-500.0,0.00010958,2]
[353221854,1739671846052,-500.0,0.00010958,2]
[353221855,1739671846061,-500.0,0.00010958,2]
[353221856,1739671846070,-1161.31,0.00010958,2]
[353221857,1739671846079,-727.64,0.00010958,2]
[353221858,1739671846088,-500.0,0.00010958,2]
[353221859,1739671846097,-500.0,0.00010958,2]
[353221860,1739671846106,-1910.67,0.00010958,2]
[353221861,1739671846114,-500.0,0.00010958,2]
[353221862,1739671846123,-896.75,0.00010958,2]
[353221863,1739671846133,-500.0,0.00010958,2]
[353221864,1739671846142,-500.0,0.00010958,2]
[353221865,1739671846152,-679.23,0.00010958,2]
[353221866,1739671846161,-500.0,0.00010958,2]
[353221867,1739671846170,-1014.91,0.00010958,2]
[353221868,1739671846180,-500.0,0.00010958,2]
[353221869,1739671846189,-500.0,0.00010958,2]
[353221870,1739671846198,-3088.74,0.00010958,2]
[353221871,1739671846207,-500.0,0.00010958,2]
[353221872,1739671846216,-500.0,0.00010958,2]
[353221873,1739671846226,-500.0,0.00010958,2]
[353221874,1739671846235,-850.62,0.00010958,2]
[353221875,1739671846245,-1802.3,0.00010958,2]
[353221876,1739671846255,-853.13,0.00010958,2]
[353221877,1739671846264,-570.01,0.00010958,2]
[353221878,1739671846277,-976.77,0.00010958,2]
[353221879,1739671846287,-500.0,0.00010958,2]
[353221880,1739671846296,-782.18,0.00010958,2]
[353221881,1739671846305,-500.0,0.00010958,2]
[353221882,1739671846316,-1800.54,0.00010958,2]
[353221883,1739671846326,-500.0,0.00010958,2]
[353221884,1739671846335,-500.0,0.00010958,2]
[353221885,1739671846345,-1533.42,0.00010958,2]
[353221886,1739671846354,-767.56,0.00010958,2]
[353221887,1739671846363,-790.49,0.00010958,2]
[353221888,1739671846373,-500.0,0.00010958,2]
[353221889,1739671846382,-1163.22,0.00010958,2]
[353221890,1739671846391,-500.0,0.00010958,2]
[353221891,1739671846400,-1320.76,0.00010958,2]
[353221892,1739671846409,-1131.28,0.00010958,2]
[353221893,1739671846419,-500.0,0.00010958,2]
[353221894,1739671846428,-556.43,0.00010958,2]
[353221895,1739671846438,-500.0,0.00010958,2]
[353221896,1739671846447,-500.0,0.00010958,2]
[353221897,1739671846456,-608.65,0.00010958,2]
[353221898,1739671846466,-500.0,0.00010958,2]
[353221899,1739671846475,-500.0,0.00010958,2]
[353221900,1739671846485,-500.0,0.00010958,2]
[353221901,1739671846494,-541.54,0.00010958,2]
[353221902,1739671846503,-1044.44,0.00010958,2]
[353221903,1739671846512,-500.0,0.00010958,2]
[353221904,1739671846521,-500.0,0.00010958,2]
[353221905,1739671846530,-1327.11,0.00010958,2]
[353221906,1739671846539,-635.89,0.00010958,2]
[353221907,1739671846548,-1114.7,0.00010958,2]
[353221908,1739671846557,-2809.22,0.00010958,2]
[353221909,1739671846567,-937.17,0.00010958,2]
[353221910,1739671846575,-500.0,0.00010958,2]
[353221911,1739671846585,-513.66,0.00010958,2]
[353221912,1739671846594,-1690.76,0.00010958,2]
[353221913,1739671846604,-1133.06,0.00010958,2]
[353221914,1739671846613,-1231.05,0.00010958,2]
[353221915,1739671846623,-1136.3,0.00010958,2]
[353221916,1739671846632,-2622.4,0.00010958,2]
[353221917,1739671846641,-500.0,0.00010958,2]
[353221918,1739671846650,-1064.6,0.00010958,2]
[353221919,1739671846659,-1279.4,0.00010958,2]
[353221920,1739671846668,-835.94,0.00010958,2]
[353221921,1739671846677,-1055.21,0.00010958,2]
[353221922,1739671846686,-500.0,0.00010958,2]
[353221923,1739671846696,-1045.65,0.00010958,2]
[353221924,1739671846705,-563.03,0.00010958,2]
[353221925,1739671846715,-500.0,0.00010958,2]
[353221926,1739671846725,-500.0,0.00010958,2]
[353221927,1739671846736,-1047.51,0.00010958,2]
[353221928,1739671846746,-1043.53,0.00010958,2]
[353221929,1739671846756,-1265.4,0.00010958,2]
[353221930,1739671846766,-1177.26,0.00010958,2]
[353221931,1739671846775,-928.21,0.00010958,2]
[353221932,1739671846784,-1210.03,0.00010958,2]
[353221933,1739671846795,-624.57,0.00010958,2]
[353221934,1739671846804,-577.75,0.00010958,2]
[353221935,1739671846813,-506.85159914,0.00010958,2]
[353221936,1739671846823,-500.0,0.00010958,2]
[353221937,1739671846831,-4838.82,0.00010958,2]
[353221938,1739671846841,-1922.19,0.00010958,2]
[353221939,1739671846851,-1253.76,0.00010958,2]
[353221940,1739671846860,-500.0,0.00010958,2]
[353221941,1739671846869,-938.92,0.00010958,2]
[353221942,1739671846879,-500.0,0.00010958,2]
[353221943,1739671846889,-1184.09,0.00010958,2]
[353221944,1739671846899,-1165.15,0.00010958,2]
[353221945,1739671846908,-966.45,0.00010958,2]
[353221946,1739671846917,-832.4,0.00010958,2]
[353221947,1739671846926,-4243.28,0.00010958,2]
[353221948,1739671846935,-826.17,0.00010958,2]
[353221949,1739671846945,-3099.57,0.00010958,2]
[353221950,1739671846954,-644.83,0.00010958,2]
[353221951,1739671846963,-500.0,0.00010958,2]
[353221952,1739671846972,-544.09,0.00010958,2]
[353221953,1739671846982,-1381.27,0.00010958,2]
[353221954,1739671846991,-1888.49,0.00010958,2]
[353221955,1739671847000,-500.0,0.00010958,2]
[353221956,1739671847009,-742.43,0.00010958,2]
[353221957,1739671847019,-500.0,0.00010958,2]
[353221958,1739671847028,-519.87056782,0.00010958,2]
[353221959,1739671847038,-937.34,0.00010958,2]
[353221960,1739671847048,-500.0,0.00010958,2]
[353221961,1739671847058,-3174.13,0.00010958,2]
[353221962,1739671847068,-501.63666064,0.00010958,2]
[353221963,1739671847078,-500.0,0.00010958,2]
[353221964,1739671847087,-1598.27,0.00010958,2]
[353221965,1739671847097,-500.28253656,0.00010958,2]
[353221966,1739671847107,-500.54624042,0.00010958,2]